fUST/lending_fUST_20260502
["ID","MTS","AMOUNT","RATE_DAILY","PERIOD"]
[421441622,1777656638000,-171.78339638,0.0001786,2]
[421441601,1777656638000,-152.0,0.0001753,7]
[421441621,1777656638000,-162.380719,0.0001786,2]
[421441599,1777656638000,-152.0,0.0001753,7]
[421441574,1777656638000,-500.0,0.00017377,2]
[421441604,1777656638000,-152.0,0.00017548,7]
[421441575,1777656638000,-500.0,0.00017377,2]
[421441576,1777656638000,-500.0,0.00017377,2]
[421441581,1777656638000,-500.0,0.00017377,2]
[421441586,1777656638000,-500.0,0.00017377,2]
[421441594,1777656638000,-160.0,0.0001748,2]
[421441596,1777656638000,-152.0,0.00017481,7]
[421441595,1777656638000,-152.0,0.00017481,7]
[421441587,1777656638000,-500.0,0.00017377,2]
[421441585,1777656638000,-621.72360685,0.00017377,2]
[421441588,1777656638000,-487.01727069,0.00017377,2]
[421441590,1777656638000,-621.1615944,0.00017448,2]
[421441589,1777656638000,-1508.0,0.00017408,2]
[421441593,1777656638000,-152.714405,0.00017448,2]
[421441607,1777656638000,-6490.33914069,0.000177,2]
[421441592,1777656638000,-5190.7098139,0.00017448,2]
[421441597,1777656638000,-3697.22839412,0.000175,2]
[421441591,1777656638000,-6760.9952973,0.00017448,2]
[421441608,1777656638000,-168.84,0.00017764,2]
[421441673,1777656639000,-3697.22839412,0.000188,2]
[421441668,1777656639000,-3697.22839412,0.000186,2]
[421441675,1777656639000,-1608.78124769,0.00018916,2]
[421441669,1777656639000,-6490.33914069,0.000186,2]
[421441671,1777656639000,-275924.97776978,0.0001862,2]
[421441661,1777656639000,-2230.315306,0.00018408,2]
[421441665,1777656639000,-248.0,0.00018493,3]
[421441659,1777656639000,-3697.22839412,0.000184,2]
[421441658,1777656639000,-1500.0,0.00018368,2]
[421441660,1777656639000,-1097.714,0.000184,2]
[421441666,1777656639000,-1446.62,0.00018504,2]
[421441656,1777656639000,-350.0,0.00018368,2]
[421441667,1777656639000,-822.0,0.00018538,2]
[421441679,1777656639000,-450.0,0.00018916,2]
[421441684,1777656639000,-545.0,0.00019,2]
[421441680,1777656639000,-2000.0,0.00018916,2]
[421441677,1777656639000,-2000.0,0.00018916,2]
[421441681,1777656639000,-2000.0,0.00018916,2]
[421441683,1777656639000,-3697.22839412,0.00019,2]
[421441697,1777656639000,-500.0,0.00019178,2]
[421441696,1777656639000,-3661.8161,0.00019178,2]
[421441695,1777656639000,-3661.8161,0.00019178,2]
[421441694,1777656639000,-155.0,0.00019077,2]
[421441688,1777656639000,-2174.105471,0.00019063,2]
[421441686,1777656639000,-171.05,0.00019058,2]
[421441689,1777656639000,-4188.210943,0.00019063,2]
[421441687,1777656639000,-160.0,0.00019063,2]
[421441655,1777656639000,-661.17956408,0.00018368,2]
[421441691,1777656639000,-448.432643,0.00019063,7]
[421441682,1777656639000,-2312.83697232,0.00018956,2]
[421441654,1777656639000,-1500.0,0.00018368,2]
[421441630,1777656639000,-1000.0,0.00017921,2]
[421441663,1777656639000,-347.93428697,0.00018468,2]
[421441685,1777656639000,-500.0,0.00019,2]
[421441625,1777656639000,-151.84620433,0.0001786,2]
[421441634,1777656639000,-3697.22839412,0.00018,2]
[421441636,1777656639000,-621.78829552,0.0001808,2]
[421441635,1777656639000,-599.60298507,0.00018025,2]
[421441637,1777656639000,-1715.529,0.000181,2]
[421441626,1777656639000,-2150.738,0.0001786,2]
[421441627,1777656639000,-169.27,0.0001789,2]
[421441631,1777656639000,-1508.0,0.00017956,2]
[421441632,1777656639000,-578.20924308,0.0001797,2]
[421441628,1777656639000,-3697.22839412,0.000179,2]
[421441629,1777656639000,-557.5788265,0.00017915,2]
[421441633,1777656639000,-5000.0,0.00017999,2]
[421441638,1777656639000,-644.79446246,0.00018135,2]
[421441639,1777656639000,-170.16,0.00018147,2]
[421441642,1777656639000,-500.0,0.00018233,5]
[421441647,1777656639000,-1410.0,0.00018315,2]
[421441662,1777656639000,-320.44973716,0.0001841,2]
[421441664,1777656639000,-250.29283,0.00018493,2]
[421441653,1777656639000,-1500.0,0.00018368,2]
[421441651,1777656639000,-1236.92199414,0.00018368,2]
[421441652,1777656639000,-1500.1211835,0.00018368,2]
[421441648,1777656639000,-442.0,0.00018315,2]
[421441657,1777656639000,-1500.0,0.00018368,2]
[421441646,1777656639000,-646.0,0.00018315,2]
[421441644,1777656639000,-719.04747942,0.000183,2]
[421441641,1777656639000,-3697.22839412,0.000182,2]
[421441640,1777656639000,-668.65185757,0.0001819,2]
[421441649,1777656639000,-185.0,0.00018315,2]
[421441645,1777656639000,-2213.0,0.00018315,2]
[421441650,1777656639000,-745.65223616,0.00018355,2]
[421441643,1777656639000,-693.3919763,0.00018245,2]
[421441693,1777656639000,-302.196561,0.00019063,7]
[421441702,1777656639000,-500.0,0.00019178,2]
[421441690,1777656639000,-160.0,0.00019063,7]
[421441739,1777656639000,-1669.23,0.00019178,2]
[421441733,1777656639000,-500.0,0.00019178,2]
[421441734,1777656639000,-500.0,0.00019178,2]
[421441741,1777656639000,-500.0,0.00019178,2]
[421441731,1777656639000,-305.41301453,0.00019178,2]
[421441742,1777656639000,-500.0,0.00019178,2]
[421441736,1777656639000,-500.0,0.00019178,2]
[421441744,1777656639000,-550.92,0.00019178,2]
[421441755,1777656639000,-500.0,0.00019178,2]
[421441743,1777656639000,-589.1,0.00019178,2]
[421441754,1777656639000,-500.0,0.00019178,2]
[421441749,1777656639000,-500.0,0.00019178,2]
[421441747,1777656639000,-500.0,0.00019178,2]
[421441748,1777656639000,-953.77,0.00019178,2]
[421441746,1777656639000,-500.0,0.00019178,2]
[421441745,1777656639000,-1857.35,0.00019178,2]
[421441750,1777656639000,-500.0,0.00019178,2]
[421441751,1777656639000,-606.38,0.00019178,2]
[421441753,1777656639000,-500.0,0.00019178,2]
[421441752,1777656639000,-500.0,0.00019178,2]
[421441757,1777656639000,-680.86,0.00019178,2]
[421441756,1777656639000,-500.0,0.00019178,2]
[421441761,1777656639000,-667.92,0.00019178,2]
[421441758,1777656639000,-500.0,0.00019178,2]
[421441760,1777656639000,-633.77,0.00019178,2]
[421441765,1777656639000,-500.0,0.00019178,2]
[421441759,1777656639000,-500.0,0.00019178,2]
[421441762,1777656639000,-500.0,0.00019178,2]
[421441764,1777656639000,-1159.58,0.00019178,2]
[421441735,1777656639000,-500.0,0.00019178,2]
[421441740,1777656639000,-368.72713259,0.00019178,2]
[421441763,1777656639000,-500.0,0.00019178,2]
[421441730,1777656639000,-500.0,0.00019178,2]
[421441732,1777656639000,-529.12,0.00019178,2]
[421441699,1777656639000,-500.0,0.00019178,2]
[421441704,1777656639000,-500.0,0.00019178,2]
[421441705,1777656639000,-500.0,0.00019178,2]
[421441701,1777656639000,-611.86853044,0.00019178,2]
[421441703,1777656639000,-1268.25,0.00019178,2]
[421441712,1777656639000,-865.87,0.00019178,2]
[421441711,1777656639000,-500.0,0.00019178,2]
[421441708,1777656639000,-1216.4,0.00019178,2]
[421441709,1777656639000,-500.0,0.00019178,2]
[421441706,1777656639000,-500.0,0.00019178,2]
[421441710,1777656639000,-557.72,0.00019178,2]
[421441713,1777656639000,-153.54290388,0.00019178,2]
[421441707,1777656639000,-500.0,0.00019178,2]
[421441715,1777656639000,-500.0,0.00019178,2]
[421441692,1777656639000,-736.865286,0.00019063,7]
[421441726,1777656639000,-500.0,0.00019178,2]
[421441725,1777656639000,-500.0,0.00019178,2]
[421441728,1777656639000,-548.28,0.00019178,2]
[421441720,1777656639000,-500.0,0.00019178,2]
[421441719,1777656639000,-538.18,0.00019178,2]
[421441721,1777656639000,-500.0,0.00019178,2]
[421441722,1777656639000,-661.78,0.00019178,2]
[421441729,1777656639000,-500.0,0.00019178,2]
[421441724,1777656639000,-363.96791719,0.00019178,2]
[421441714,1777656639000,-500.0,0.00019178,2]
[421441723,1777656639000,-829.42,0.00019178,2]
[421441717,1777656639000,-289.05746313,0.00019178,2]
[421441738,1777656639000,-500.0,0.00019178,2]
[421441718,1777656639000,-668.63,0.00019178,2]
[421441727,1777656639000,-500.0,0.00019178,2]
[421441716,1777656639000,-500.0,0.00019178,2]
[421441811,1777656640000,-500.0,0.00019178,2]
[421441791,1777656640000,-500.0,0.00019178,2]
[421441795,1777656640000,-870.16,0.00019178,2]
[421441802,1777656640000,-500.0,0.00019178,2]
[421441813,1777656640000,-500.0,0.00019178,2]
[421441801,1777656640000,-500.0,0.00019178,2]
[421441804,1777656640000,-905.13,0.00019178,2]
[421441803,1777656640000,-500.0,0.00019178,2]
[421441806,1777656640000,-500.0,0.00019178,2]
[421441805,1777656640000,-627.32,0.00019178,2]
[421441793,1777656640000,-500.0,0.00019178,2]
[421441812,1777656640000,-500.0,0.00019178,2]
[421441820,1777656640000,-500.0,0.00019178,2]
[421441809,1777656640000,-741.27,0.00019178,2]
[421441807,1777656640000,-1767.25,0.00019178,2]
[421441810,1777656640000,-1136.0,0.00019178,2]
[421441817,1777656640000,-500.0,0.00019178,2]
[421441818,1777656640000,-500.0,0.00019178,2]
[421441792,1777656640000,-500.0,0.00019178,2]
[421441815,1777656640000,-854.95,0.00019178,2]
[421441819,1777656640000,-500.0,0.00019178,2]
[421441821,1777656640000,-3204.39,0.00019178,2]
[421441823,1777656640000,-500.0,0.00019178,2]
[421441824,1777656640000,-500.0,0.00019178,2]
[421441816,1777656640000,-500.0,0.00019178,2]
[421441826,1777656640000,-500.0,0.00019178,2]
[421441808,1777656640000,-500.0,0.00019178,2]
[421441794,1777656640000,-500.0,0.00019178,2]
[421441788,1777656640000,-604.27,0.00019178,2]
[421441790,1777656640000,-500.0,0.00019178,2]
[421441827,1777656640000,-500.0,0.00019178,2]
[421441767,1777656640000,-2456.17,0.00019178,2]
[421441768,1777656640000,-1785.77,0.00019178,2]
[421441769,1777656640000,-533.20987677,0.00019178,2]
[421441766,1777656640000,-921.62,0.00019178,2]
[421441771,1777656640000,-500.0,0.00019178,2]
[421441770,1777656640000,-1000.0,0.00019178,2]
[421441777,1777656640000,-500.0,0.00019178,2]
[421441779,1777656640000,-500.0,0.00019178,2]
[421441778,1777656640000,-500.0,0.00019178,2]
[421441772,1777656640000,-500.0,0.00019178,2]
[421441776,1777656640000,-500.0,0.00019178,2]
[421441773,1777656640000,-500.0,0.00019178,2]
[421441774,1777656640000,-828.59,0.00019178,2]
[421441780,1777656640000,-522.31,0.00019178,2]
[421441782,1777656640000,-500.0,0.00019178,2]
[421441781,1777656640000,-500.0,0.00019178,2]
[421441783,1777656640000,-3484.89,0.00019178,2]
[421441784,1777656640000,-692.82,0.00019178,2]
[421441786,1777656640000,-180.938791,0.00019178,2]
[421441785,1777656640000,-151.0,0.00019178,2]
[421441787,1777656640000,-779.97,0.00019178,2]
[421441789,1777656640000,-500.0,0.00019178,2]
[421441797,1777656640000,-500.0,0.00019178,2]
[421441798,1777656640000,-1880.39,0.00019178,2]
[421441799,1777656640000,-500.0,0.00019178,2]
[421441800,1777656640000,-500.0,0.00019178,2]
[421441796,1777656640000,-2128.57,0.00019178,2]
[421441775,1777656640000,-500.0,0.00019178,2]
[421441828,1777656640000,-500.0,0.00019178,2]
[421441829,1777656640000,-677.63,0.00019178,2]
[421441871,1777656640000,-744.15,0.00019178,2]
[421441873,1777656640000,-500.0,0.00019178,2]
[421441874,1777656640000,-500.0,0.00019178,2]
[421441869,1777656640000,-500.0,0.00019178,2]
[421441876,1777656640000,-500.0,0.00019178,2]
[421441875,1777656640000,-752.92,0.00019178,2]
[421441877,1777656640000,-1265.35,0.00019178,2]
[421441878,1777656640000,-678.69,0.00019178,2]
[421441889,1777656640000,-2375.59,0.00019178,2]
[421441888,1777656640000,-500.0,0.00019178,2]
[421441879,1777656640000,-500.0,0.00019178,2]
[421441882,1777656640000,-500.0,0.00019178,2]
[421441857,1777656640000,-1330.18,0.00019178,2]
[421441886,1777656640000,-500.0,0.00019178,2]
[421441883,1777656640000,-904.62,0.00019178,2]
[421441880,1777656640000,-1648.22,0.00019178,2]
[421441887,1777656640000,-500.0,0.00019178,2]
[421441885,1777656640000,-1392.24,0.00019178,2]
[421441891,1777656640000,-500.0,0.00019178,2]
[421441893,1777656640000,-786.3,0.00019178,2]
[421441890,1777656640000,-500.0,0.00019178,2]
[421441892,1777656640000,-1208.63,0.00019178,2]
[421441896,1777656640000,-534.89182821,0.00019178,2]
[421441894,1777656640000,-1315.83,0.00019178,2]
[421441895,1777656640000,-2102.52,0.00019178,2]
[421441830,1777656640000,-500.0,0.00019178,2]
[421441881,1777656640000,-1000.0,0.00019178,2]
[421441867,1777656640000,-500.0,0.00019178,2]
[421441884,1777656640000,-2090.04,0.00019178,2]
[421441865,1777656640000,-704.99,0.00019178,2]
[421441832,1777656640000,-500.0,0.00019178,2]
[421441861,1777656640000,-500.0,0.00019178,2]
[421441842,1777656640000,-500.0,0.00019178,2]
[421441843,1777656640000,-2415.45,0.00019178,2]
[421441834,1777656640000,-500.0,0.00019178,2]
[421441836,1777656640000,-500.0,0.00019178,2]
[421441833,1777656640000,-500.0,0.00019178,2]
[421441831,1777656640000,-3330.66,0.00019178,2]
[421441837,1777656640000,-688.14,0.00019178,2]
[421441840,1777656640000,-500.0,0.00019178,2]
[421441838,1777656640000,-509.41,0.00019178,2]
[421441841,1777656640000,-500.0,0.00019178,2]
[421441839,1777656640000,-501.61220786,0.00019178,2]
[421441855,1777656640000,-987.69,0.00019178,2]
[421441835,1777656640000,-590.0,0.00019178,2]
[421441844,1777656640000,-749.24,0.00019178,2]
[421441863,1777656640000,-462.56483903,0.00019178,2]
[421441856,1777656640000,-500.0,0.00019178,2]
[421441850,1777656640000,-500.0,0.00019178,2]
[421441854,1777656640000,-500.0,0.00019178,2]
[421441851,1777656640000,-866.49,0.00019178,2]
[421441853,1777656640000,-1386.74,0.00019178,2]
[421441858,1777656640000,-926.05,0.00019178,2]
[421441847,1777656640000,-500.0,0.00019178,2]
[421441846,1777656640000,-500.0,0.00019178,2]
[421441849,1777656640000,-500.0,0.00019178,2]
[421441848,1777656640000,-738.56,0.00019178,2]
[421441852,1777656640000,-4743.33,0.00019178,2]
[421441943,1777656641000,-734.77,0.00019178,2]
[421441944,1777656641000,-2079.33,0.00019178,2]
[421441938,1777656641000,-500.0,0.00019178,2]
[421441937,1777656641000,-500.0,0.00019178,2]
[421441935,1777656641000,-638.62,0.00019178,2]
[421441934,1777656641000,-500.0,0.00019178,2]
[421441961,1777656641000,-1432.18,0.00019178,2]
[421441933,1777656641000,-641.33,0.00019178,2]
[421441936,1777656641000,-500.0,0.00019178,2]
[421441941,1777656641000,-500.0,0.00019178,2]
[421441939,1777656641000,-500.0,0.00019178,2]
[421441930,1777656641000,-500.0,0.00019178,2]
[421441940,1777656641000,-500.0,0.00019178,2]
[421441942,1777656641000,-524.43,0.00019178,2]
[421441967,1777656641000,-500.0,0.00019178,2]
[421441954,1777656641000,-500.0,0.00019178,2]
[421441947,1777656641000,-4941.45,0.00019178,2]
[421441946,1777656641000,-509.48,0.00019178,2]
[421441953,1777656641000,-717.01,0.00019178,2]
[421441899,1777656641000,-500.0,0.00019178,2]
[421441948,1777656641000,-500.0,0.00019178,2]
[421441952,1777656641000,-500.0,0.00019178,2]
[421441955,1777656641000,-500.0,0.00019178,2]
[421441951,1777656641000,-229.0582,0.00019178,2]
[421441949,1777656641000,-500.0,0.00019178,2]
[421441950,1777656641000,-633.96,0.00019178,2]
[421441957,1777656641000,-500.0,0.00019178,2]
[421441964,1777656641000,-500.0,0.00019178,2]
[421441932,1777656641000,-500.0,0.00019178,2]
[421441945,1777656641000,-500.0,0.00019178,2]
[421441931,1777656641000,-651.91,0.00019178,2]
[421441898,1777656641000,-500.0,0.00019178,2]
[421441923,1777656641000,-2042.16,0.00019178,2]
[421441900,1777656641000,-662.75,0.00019178,2]
[421441897,1777656641000,-500.0,0.00019178,2]
[421441902,1777656641000,-500.0,0.00019178,2]
[421441901,1777656641000,-500.0,0.00019178,2]
[421441904,1777656641000,-923.3,0.00019178,2]
[421441915,1777656641000,-632.85,0.00019178,2]
[421441903,1777656641000,-1175.18,0.00019178,2]
[421441914,1777656641000,-500.0,0.00019178,2]
[421441907,1777656641000,-626.52,0.00019178,2]
[421441910,1777656641000,-500.0,0.00019178,2]
[421441905,1777656641000,-500.0,0.00019178,2]
[421441908,1777656641000,-500.0,0.00019178,2]
[421441906,1777656641000,-500.0,0.00019178,2]
[421441909,1777656641000,-500.0,0.00019178,2]
[421441911,1777656641000,-1083.52,0.00019178,2]
[421441913,1777656641000,-500.0,0.00019178,2]
[421441912,1777656641000,-516.96,0.00019178,2]
[421441917,1777656641000,-500.0,0.00019178,2]
[421441919,1777656641000,-1869.48,0.00019178,2]
[421441916,1777656641000,-1145.74,0.00019178,2]
[421441918,1777656641000,-935.47,0.00019178,2]
[421441926,1777656641000,-654.04,0.00019178,2]
[421441924,1777656641000,-961.92,0.00019178,2]
[421441927,1777656641000,-500.0,0.00019178,2]
[421441922,1777656641000,-500.0,0.00019178,2]
[421441921,1777656641000,-500.0,0.00019178,2]
[421441928,1777656641000,-511.9,0.00019178,2]
[421441925,1777656641000,-5151.82,0.00019178,2]
[421441920,1777656641000,-2972.15,0.00019178,2]
[421441929,1777656641000,-789.36,0.00019178,2]
[421441969,1777656641000,-185.930506,0.00019178,2]
[421441979,1777656641000,-185.930506,0.00019178,2]
[421441956,1777656641000,-500.0,0.00019178,2]
[421442007,1777656641000,-500.0,0.00019178,2]
[421442008,1777656641000,-151.0,0.00019178,2]
[421441999,1777656641000,-1016.62,0.00019178,2]
[421442001,1777656641000,-426.8288645,0.00019178,2]
[421442005,1777656641000,-5000.0,0.00019178,2]
[421442002,1777656641000,-645.61677907,0.00019178,2]
[421442003,1777656641000,-500.0,0.00019178,2]
[421442004,1777656641000,-714.9,0.00019178,2]
[421442000,1777656641000,-500.0,0.00019178,2]
[421442006,1777656641000,-270.993544,0.00019178,2]
[421442010,1777656641000,-151.0,0.00019178,2]
[421442009,1777656641000,-500.0,0.00019178,2]
[421442020,1777656641000,-500.0,0.00019178,2]
[421442021,1777656641000,-4068.55,0.00019178,2]
[421442017,1777656641000,-546.45,0.00019178,2]
[421442015,1777656641000,-500.0,0.00019178,2]
[421442016,1777656641000,-8284.33,0.00019178,2]
[421442013,1777656641000,-151.0,0.00019178,2]
[421442014,1777656641000,-13378.13,0.00019178,2]
[421442012,1777656641000,-3802.22,0.00019178,2]
[421442022,1777656641000,-500.0,0.00019178,2]
[421442019,1777656641000,-7081.6,0.00019178,2]
[421442011,1777656641000,-151.0,0.00019178,2]
[421442018,1777656641000,-500.0,0.00019178,2]
[421442024,1777656641000,-500.0,0.00019178,2]
[421442026,1777656641000,-500.0,0.00019178,2]
[421442025,1777656641000,-800.05,0.00019178,2]
[421442023,1777656641000,-11577.5,0.00019178,2]
[421441962,1777656641000,-500.0,0.00019178,2]
[421441996,1777656641000,-500.0,0.00019178,2]
[421441997,1777656641000,-580.96,0.00019178,2]
[421441989,1777656641000,-500.0,0.00019178,2]
[421441993,1777656641000,-181.84656613,0.00019178,2]
[421441998,1777656641000,-500.0,0.00019178,2]
[421441966,1777656641000,-500.0,0.00019178,2]
[421441958,1777656641000,-500.0,0.00019178,2]
[421441959,1777656641000,-500.0,0.00019178,2]
[421441960,1777656641000,-500.0,0.00019178,2]
[421441963,1777656641000,-500.0,0.00019178,2]
[421441965,1777656641000,-2077.53,0.00019178,2]
[421441972,1777656641000,-185.930506,0.00019178,2]
[421441973,1777656641000,-185.930506,0.00019178,2]
[421441970,1777656641000,-500.0,0.00019178,2]
[421441977,1777656641000,-993.69,0.00019178,2]
[421441974,1777656641000,-185.930506,0.00019178,2]
[421441971,1777656641000,-4892.78,0.00019178,2]
[421441975,1777656641000,-185.930506,0.00019178,2]
[421441981,1777656641000,-500.0,0.00019178,2]
[421441968,1777656641000,-185.930506,0.00019178,2]
[421441980,1777656641000,-185.930506,0.00019178,2]
[421441976,1777656641000,-2631.94,0.00019178,2]
[421441992,1777656641000,-2563.21,0.00019178,2]
[421441994,1777656641000,-500.0,0.00019178,2]
[421441995,1777656641000,-500.0,0.00019178,2]
[421441984,1777656641000,-990.69,0.00019178,2]
[421441990,1777656641000,-548.43695259,0.00019178,2]
[421441991,1777656641000,-500.0,0.00019178,2]
[421441987,1777656641000,-500.0,0.00019178,2]
[421441988,1777656641000,-5067.85,0.00019178,2]
[421441985,1777656641000,-500.0,0.00019178,2]
[421441983,1777656641000,-500.0,0.00019178,2]
[421441978,1777656641000,-1639.88,0.00019178,2]
[421441982,1777656641000,-579.53,0.00019178,2]
[421441986,1777656641000,-500.0,0.00019178,2]
[421442065,1777656642000,-4005.87,0.00019178,2]
[421442069,1777656642000,-500.0,0.00019178,2]
[421442068,1777656642000,-8311.66,0.00019178,2]
[421442070,1777656642000,-500.0,0.00019178,2]
[421442066,1777656642000,-918.41,0.00019178,2]
[421442059,1777656642000,-5136.02,0.00019178,2]
[421442062,1777656642000,-1320.5,0.00019178,2]
[421442060,1777656642000,-5530.99,0.00019178,2]
[421442058,1777656642000,-1257.36,0.00019178,2]
[421442064,1777656642000,-2849.0,0.00019178,2]
[421442063,1777656642000,-1814.24,0.00019178,2]
[421442067,1777656642000,-798.9,0.00019178,2]
[421442084,1777656642000,-691.34,0.00019178,2]
[421442072,1777656642000,-11365.63,0.00019178,2]
[421442073,1777656642000,-500.0,0.00019178,2]
[421442080,1777656642000,-678.19,0.00019178,2]
[421442081,1777656642000,-151.0,0.00019178,2]
[421442082,1777656642000,-3568.69,0.00019178,2]
[421442054,1777656642000,-151.0,0.00019178,2]
[421442083,1777656642000,-151.0,0.00019178,2]
[421442085,1777656642000,-8491.08,0.00019178,2]
[421442076,1777656642000,-500.0,0.00019178,2]
[421442079,1777656642000,-500.0,0.00019178,2]
[421442077,1777656642000,-1659.02,0.00019178,2]
[421442078,1777656642000,-500.0,0.00019178,2]
[421442071,1777656642000,-509.91,0.00019178,2]
[421442057,1777656642000,-890.19,0.00019178,2]
[421442043,1777656642000,-339.90015772,0.00019178,2]
[421442053,1777656642000,-151.0,0.00019178,2]
[421442034,1777656642000,-500.0,0.00019178,2]
[421442035,1777656642000,-1014.73,0.00019178,2]
[421442030,1777656642000,-2473.16,0.00019178,2]
[421442028,1777656642000,-4205.53,0.00019178,2]
[421442027,1777656642000,-500.0,0.00019178,2]
[421442029,1777656642000,-500.0,0.00019178,2]
[421442031,1777656642000,-300.0,0.00019178,2]
[421442033,1777656642000,-500.0,0.00019178,2]
[421442032,1777656642000,-621.88,0.00019178,2]
[421442036,1777656642000,-500.0,0.00019178,2]
[421442038,1777656642000,-673.69,0.00019178,2]
[421442040,1777656642000,-500.0,0.00019178,2]
[421442055,1777656642000,-500.0,0.00019178,2]
[421442049,1777656642000,-151.0,0.00019178,2]
[421442047,1777656642000,-4775.22,0.00019178,2]
[421442046,1777656642000,-500.0,0.00019178,2]
[421442048,1777656642000,-151.0,0.00019178,2]
[421442037,1777656642000,-500.0,0.00019178,2]
[421442044,1777656642000,-500.0,0.00019178,2]
[421442042,1777656642000,-500.0,0.00019178,2]
[421442039,1777656642000,-697.43,0.00019178,2]
[421442074,1777656642000,-3849.17,0.00019178,2]
[421442045,1777656642000,-1304.25,0.00019178,2]
[421442051,1777656642000,-151.0,0.00019178,2]
[421442061,1777656642000,-500.0,0.00019178,2]
[421442052,1777656642000,-4002.04,0.00019178,2]
[421442041,1777656642000,-1489.98,0.00019178,2]
[421442086,1777656642000,-389.04812186,0.00019178,2]
[421442050,1777656642000,-151.0,0.00019178,2]
[421442088,1777656642000,-539.87,0.00019178,2]
[421442121,1777656642000,-500.0,0.00019178,2]
[421442122,1777656642000,-500.0,0.00019178,2]
[421442120,1777656642000,-6780.13,0.00019178,2]
[421442123,1777656642000,-841.32,0.00019178,2]
[421442124,1777656642000,-2178.97,0.00019178,2]
[421442125,1777656642000,-874.54,0.00019178,2]
[421442126,1777656642000,-1283.38,0.00019178,2]
[421442133,1777656642000,-500.0,0.00019178,2]
[421442132,1777656642000,-500.0,0.00019178,2]
[421442140,1777656642000,-500.0,0.00019178,2]
[421442135,1777656642000,-500.0,0.00019178,2]
[421442142,1777656642000,-3494.94,0.00019178,2]
[421442136,1777656642000,-1056.21,0.00019178,2]
[421442148,1777656642000,-1565.22,0.00019178,2]
[421442146,1777656642000,-500.0,0.00019178,2]
[421442137,1777656642000,-6801.8,0.00019178,2]
[421442138,1777656642000,-500.0,0.00019178,2]
[421442134,1777656642000,-844.86,0.00019178,2]
[421442144,1777656642000,-500.0,0.00019178,2]
[421442147,1777656642000,-500.0,0.00019178,2]
[421442149,1777656642000,-3168.21,0.00019178,2]
[421442152,1777656642000,-653.15,0.00019178,2]
[421442150,1777656642000,-500.0,0.00019178,2]
[421442151,1777656642000,-500.0,0.00019178,2]
[421442154,1777656642000,-1091.42586763,0.00019178,2]
[421442153,1777656642000,-500.0,0.00019178,2]
[421442089,1777656642000,-1807.77,0.00019178,2]
[421442116,1777656642000,-500.0,0.00019178,2]
[421442119,1777656642000,-6019.1,0.00019178,2]
[421442056,1777656642000,-500.0,0.00019178,2]
[421442129,1777656642000,-724.35,0.00019178,2]
[421442130,1777656642000,-500.0,0.00019178,2]
[421442087,1777656642000,-500.0,0.00019178,2]
[421442095,1777656642000,-500.0,0.00019178,2]
[421442098,1777656642000,-3717.25,0.00019178,2]